fUST/lending_fUST_20251006
["ID","MTS","AMOUNT","RATE_DAILY","PERIOD"]
[389587724,1759732243592,-151.0,0.00018222,2]
[389587725,1759732243601,-199.47064046,0.00018222,2]
[389587726,1759732243610,-168.0,0.0001828,2]
[389587727,1759732243619,-1062.60035708,0.00018295,2]
[389587728,1759732243628,-1768.07126148,0.000183,2]
[389587729,1759732243637,-1768.07126146,0.00018325,2]
[389587730,1759732243646,-300.0,0.00018326,2]
[389587731,1759732243656,-300.0,0.00018326,2]
[389587732,1759732243665,-300.0,0.00018326,2]
[389587733,1759732243674,-300.0,0.00018326,2]
[389587734,1759732243683,-300.0,0.00018326,2]
[389587735,1759732243692,-300.0,0.00018326,2]
[389587736,1759732243702,-300.0,0.00018326,2]
[389587737,1759732243712,-300.0,0.00018326,2]
[389587738,1759732243721,-300.0,0.00018326,2]
[389587739,1759732243730,-300.0,0.00018326,2]
[389587740,1759732243740,-300.0,0.00018326,2]
[389587741,1759732243750,-300.0,0.00018326,2]
[389587742,1759732243759,-300.0,0.00018326,2]
[389587743,1759732243768,-300.0,0.00018326,2]
[389587744,1759732243777,-300.0,0.00018326,2]
[389587745,1759732243787,-500.0,0.00018347,2]
[389587746,1759732243796,-2200.0,0.00018348,2]
[389587747,1759732243805,-1768.07126146,0.0001835,2]
[389587748,1759732243814,-500.0,0.00018373,2]
[389587749,1759732243824,-501.331365,0.00018373,2]
[389587750,1759732243834,-500.0,0.00018373,2]
[389587751,1759732243844,-500.0,0.00018373,2]
[389587752,1759732243854,-500.0,0.00018373,2]
[389587753,1759732243863,-500.0,0.00018373,2]
[389587754,1759732243872,-500.38124082,0.00018373,2]
[389587755,1759732243882,-500.0,0.00018373,2]
[389587756,1759732243891,-374.45360787,0.00018373,2]
[389587757,1759732243899,-501.52920836,0.00018373,2]
[389587758,1759732243909,-341.55666163,0.00018373,2]
[389587759,1759732243918,-500.0,0.00018373,2]
[389587760,1759732243927,-500.0,0.00018373,2]
[389587761,1759732243936,-107386.76306507,0.00018373,2]
[389587762,1759732243945,-1768.07126146,0.00018375,2]
[389587763,1759732243955,-107386.76306507,0.00018387,2]
[389587764,1759732243964,-500.01,0.000184,2]
[389587765,1759732243973,-11123.7613821,0.000184,2]
[389587766,1759732243982,-1768.07126146,0.000184,2]
[389587767,1759732243992,-107386.76306507,0.000184,2]
[389587768,1759732244002,-420.0,0.00018438,2]
[389587769,1759732244011,-168.0,0.00018454,2]
[389587770,1759732244021,-370.72473312,0.00018473,2]
[389587771,1759732244031,-500.0,0.00018473,2]
[389587772,1759732244041,-500.0,0.00018473,2]
[389587773,1759732244051,-500.27430723,0.00018473,2]
[389587774,1759732244061,-500.0,0.00018473,2]
[389587775,1759732244070,-500.0,0.00018473,2]
[389587776,1759732244079,-500.0,0.00018473,2]
[389587777,1759732244089,-500.46169269,0.00018473,2]
[389587778,1759732244098,-500.0,0.00018473,2]
[389587779,1759732244107,-500.0,0.00018473,2]
[389587780,1759732244116,-500.0,0.00018473,2]
[389587781,1759732244126,-500.42874683,0.00018473,2]
[389587782,1759732244135,-500.0,0.00018473,2]
[389587783,1759732244144,-500.0,0.00018473,2]
[389587784,1759732244153,-500.0,0.00018473,2]
[389587785,1759732244163,-500.0,0.00018473,2]
[389587786,1759732244172,-500.0,0.00018473,2]
[389587787,1759732244181,-200.16600572,0.00018473,2]
[389587788,1759732244190,-500.0,0.00018473,2]
[389587789,1759732244199,-500.0,0.00018473,2]
[389587790,1759732244208,-500.0,0.00018473,2]
[389587791,1759732244218,-500.0,0.00018473,2]
[389587792,1759732244227,-500.0,0.00018473,2]
[389587793,1759732244237,-500.0,0.00018473,2]
[389587794,1759732244247,-500.0,0.00018473,2]
[389587795,1759732244256,-500.0,0.00018473,2]
[389587796,1759732244265,-500.0,0.00018473,2]
[389587797,1759732244275,-500.0,0.00018473,2]
[389587798,1759732244283,-500.0,0.00018473,2]
[389587799,1759732244293,-200.1689984,0.00018473,2]
[389587800,1759732244303,-30.50654159,0.00018473,2]
[389587802,1759732245477,934.79,0.00028767,120]
[389587810,1759732585736,206.60089585,0.000287,120]
[389587816,1759733196123,-1500.0,0.00016438,2]
[389587817,1759733196145,-300.0,0.00017247,2]
[389587818,1759733196165,-1200.0,0.00017248,2]
[389587819,1759733196185,-300.0,0.00017248,2]
[389587820,1759733196207,-300.0,0.00017248,2]
[389587821,1759733196229,-1200.0,0.00017248,2]
[389587822,1759733196250,-300.0,0.00017248,2]
[389587823,1759733196270,-6884.81778323,0.00017251,2]
[389587824,1759733196290,-2158.0,0.000174,2]
[389587825,1759733196311,-141.71365677,0.000174,2]
[389587826,1759733203592,221226.32064973,0.0002,19]
[389587827,1759733242075,-410.0,0.000174,2]
[389587828,1759733242094,-411.084,0.000174,2]
[389587829,1759733242113,-980.0,0.000174,2]
[389587830,1759733242132,-653.794,0.000174,2]
[389587831,1759733242152,-2158.0,0.000174,2]
[389587832,1759733242172,-2927.0,0.000174,2]
[389587833,1759733242192,-300.0,0.00017566,2]
[389587834,1759733242212,-160.0,0.00017566,2]
[389587835,1759733242231,-160.0,0.00017567,2]
[389587836,1759733242252,-160.0,0.00017567,2]
[389587837,1759733242271,-533.6495537,0.00017567,2]
[389587838,1759733242290,-293.61728183,0.00017567,2]
[389587839,1759733242309,-160.0,0.00017567,2]
[389587840,1759733242328,-234.17717776,0.00017567,2]
[389587841,1759733242347,-160.0,0.00017567,2]
[389587842,1759733242368,-300.0,0.00017595,2]
[389587843,1759733242389,-300.0,0.00017595,2]
[389587844,1759733242409,-300.0,0.00017595,2]
[389587845,1759733242429,-300.0,0.00017595,2]
[389587846,1759733242450,-300.0,0.00017595,2]
[389587847,1759733242470,-300.0,0.00017595,2]
[389587848,1759733242491,-300.0,0.00017595,2]
[389587849,1759733242512,-300.0,0.00017595,2]
[389587850,1759733242532,-300.0,0.00017595,2]
[389587851,1759733242552,-300.0,0.00017595,2]
[389587852,1759733242573,-300.0,0.00017595,2]
[389587853,1759733242594,-300.0,0.00017595,2]
[389587854,1759733242615,-300.0,0.00017595,2]
[389587855,1759733242636,-300.0,0.00017595,2]
[389587856,1759733242657,-300.0,0.00017595,2]
[389587857,1759733242676,-201.83,0.00017595,2]
[389587858,1759733242695,-324.0,0.00017648,2]
[389587859,1759733242713,-201.83,0.00017869,2]
[389587860,1759733242735,-600.0,0.00017946,2]
[389587861,1759733242754,-394.33824899,0.0001799,2]
[389587862,1759733242775,-348.0,0.00018048,2]
[389587863,1759733242793,-166.0,0.0001809,2]
[389587864,1759733242813,-329.0,0.0001809,2]
[389587865,1759733242832,-329.0,0.0001809,2]
[389587866,1759733242856,-329.0,0.0001809,2]
[389587867,1759733242877,-329.0,0.0001809,2]
[389587868,1759733242896,-329.0,0.0001809,2]
[389587869,1759733242920,-329.0,0.0001809,2]
[389587870,1759733242941,-172.0,0.0001809,2]
[389587871,1759733242960,-173.57954123,0.0001809,2]
[389587872,1759733242980,-166.0,0.0001809,2]
[389587873,1759733243000,-166.0,0.0001809,2]
[389587874,1759733243021,-162.0,0.0001809,2]
[389587875,1759733243045,-162.0,0.0001809,2]
[389587876,1759733243068,-162.34539203,0.0001809,2]
[389587877,1759733243088,-905.06591337,0.00018103,2]
[389587878,1759733243109,-201.83,0.00018143,2]
[389587879,1759733243129,-259.969,0.00018151,2]
[389587880,1759733243150,-302.8703015,0.000182,2]
[389587881,1759733243170,-1175.3151264,0.000182,2]
[389587882,1759733243190,-889.0,0.00018222,2]
[389587883,1759733243213,-168.0,0.00018303,2]
[389587884,1759733243233,-500.0,0.00018303,2]
[389587885,1759733243255,-226.70448453,0.00018388,2]
[389587886,1759733243280,-427.20849758,0.00018388,2]
[389587887,1759733243301,-151.0,0.00018389,2]
[389587888,1759733243320,-18603.8837,0.00018389,2]
[389587889,1759733243340,-1412.4252883,0.0001839,2]
[389587890,1759733243361,-928.1169033,0.0001839,2]
[389587891,1759733243381,-151.0,0.000184,2]
[389587892,1759733243402,-1768.07126146,0.000184,2]
[389587893,1759733243422,-10011.38524389,0.000184,2]
[389587894,1759733243442,-201.83,0.00018417,2]
[389587895,1759733243463,-372.0,0.00018448,2]
[389587896,1759733243481,-177.57,0.00018463,2]
[389587897,1759733243501,-500.0,0.00018473,2]
[389587898,1759733243520,-500.0,0.00018473,2]
[389587899,1759733243539,-500.0,0.00018473,2]
[389587900,1759733243558,-500.0,0.00018473,2]
[389587901,1759733243577,-500.0,0.00018473,2]
[389587902,1759733243597,-500.0,0.00018473,2]
[389587903,1759733243619,-500.0,0.00018473,2]
[389587904,1759733243640,-500.0,0.00018473,2]
[389587905,1759733243661,-500.0,0.00018473,2]
[389587906,1759733243682,-406.558254,0.00018473,2]
[389587907,1759733243703,-500.0,0.00018473,2]
[389587908,1759733243723,-500.0,0.00018473,2]
[389587909,1759733243743,-500.0,0.00018473,2]
[389587910,1759733243764,-500.0,0.00018473,2]
[389587911,1759733243782,-500.0,0.00018473,2]
[389587912,1759733243803,-500.0,0.00018473,2]
[389587913,1759733243824,-505.64889148,0.00018473,2]
[389587914,1759733243844,-500.0,0.00018473,2]
[389587915,1759733243869,-500.0,0.00018473,2]
[389587916,1759733243890,-1413.32660292,0.00018483,2]
[389587917,1759733243910,-177.57,0.0001849,2]
[389587918,1759733243930,-177.57,0.0001849,2]
[389587919,1759733243949,-177.57,0.0001849,2]
[389587920,1759733243972,-357.13,0.0001849,3]
[389587921,1759733243993,-178.57,0.0001849,3]
[389587922,1759733244015,-535.72,0.0001849,3]
[389587923,1759733244036,-162.6680534,0.00018494,2]
[389587924,1759733244058,-889.0,0.00018496,2]
[389587925,1759733244079,-78525.67067333,0.000185,2]
[389587929,1759733412937,3647.37,0.00028767,120]
[389588066,1759733438319,-2927.0,0.00017402,2]
[389588067,1759733438329,-1122.7140933,0.00017655,2]
[389588068,1759733438339,-300.0,0.00018299,2]
[389588069,1759733438348,-7146.37254117,0.000183,2]
[389588083,1759733444463,-1587.17016,0.000183,2]
[389588090,1759733447058,-16712.832599,0.000183,2]
[389588091,1759733447251,-8200.00000018,0.000183,2]
[389588092,1759733447262,-2531.505043,0.000183,2]
[389588093,1759733557674,420.0,0.0002,120]
[389588103,1759733868845,302.0,0.00028767,120]
[389588105,1759733907261,302.0,0.00028767,120]
[389588110,1759734164676,1628.94876996,0.00026,120]
[389588122,1759734428032,160.27899247,0.00024767,30]
[389588264,1759734638272,-226.3760339,0.00016991,2]
[389588265,1759734638282,-300.0,0.00016991,2]
[389588266,1759734638292,-324.0,0.00017391,2]
[389588267,1759734638302,-300.0,0.00017401,2]
[389588268,1759734638312,-980.0,0.00017402,2]
[389588269,1759734638322,-630.0,0.00017402,2]
[389588270,1759734638331,-153.71544654,0.00017402,2]
[389588281,1759734640521,-2004.28455346,0.00017402,2]
[389588282,1759734640533,-2927.0,0.00017449,2]
[389588283,1759734640543,-348.0,0.00017791,2]
[389588284,1759734640551,-8836.44064486,0.00018,2]
[389588311,1759734646483,-26072.55935514,0.00018,2]
[389588313,1759734646492,-533.6495537,0.00018008,2]
[389588314,1759734646501,-160.0,0.00018008,2]
[389588316,1759734646512,-293.61728183,0.00018008,2]
[389588318,1759734646521,-160.0,0.00018008,2]
[389588319,1759734646531,-234.17717776,0.00018008,2]
[389588320,1759734646542,-160.0,0.0001803,2]
[389588321,1759734646551,-160.0,0.0001803,2]
[389588322,1759734646560,-266.1771389,0.000181,2]
[389588323,1759734646569,-372.0,0.00018191,2]
[389588324,1759734646579,-298.0,0.00018333,2]
[389588325,1759734646588,-168.0,0.0001838,2]
[389588326,1759734646597,-3328.7913537,0.00018407,2]
[389588327,1759734646605,-678.79943503,0.00018472,2]
[389588328,1759734646614,-500.0,0.00018473,2]
[389588329,1759734646624,-500.0,0.00018473,2]
[389588330,1759734646633,-500.0,0.00018473,2]
[389588331,1759734646642,-370.72473312,0.00018473,2]
[389588332,1759734646652,-500.0,0.00018473,2]
[389588333,1759734646661,-500.0,0.00018473,2]
[389588334,1759734646670,-500.0,0.00018473,2]
[389588335,1759734646680,-501.27762464,0.00018473,2]
[389588336,1759734646689,-500.0,0.00018473,2]
[389588337,1759734646698,-500.0,0.00018473,2]
[389588338,1759734646707,-500.0,0.00018473,2]
[389588339,1759734646717,-240.95312661,0.00018473,2]
[389588340,1759734646727,-500.0,0.00018473,2]
[389588341,1759734646737,-500.0,0.00018473,2]
[389588342,1759734646746,-500.0,0.00018473,2]
[389588343,1759734646755,-500.0,0.00018473,2]
[389588344,1759734646764,-500.0,0.00018473,2]
[389588345,1759734646774,-501.20040929,0.00018473,2]
[389588346,1759734646783,-500.0,0.00018473,2]
[389588347,1759734646792,-500.0,0.00018473,2]
[389588348,1759734646802,-207.976,0.00018473,2]
[389588349,1759734646812,-18603.8837,0.00018489,2]
[389588350,1759734646820,-151.0,0.00018489,2]
[389588351,1759734646829,-178.56,0.0001849,3]
[389588352,1759734646838,-535.72,0.0001849,3]
[389588353,1759734646847,-117118.65822542,0.000185,2]
[389588358,1759735058802,58378.58884969,0.00025,30]
[389588382,1759735138480,-171.37,0.00031788,120]
[389588383,1759735138509,-75000.00000001,0.00031788,120]
[389588384,1759735138536,-1013.23249311,0.00031788,60]
[389588385,1759735138563,-295.53664401,0.00031788,120]
[389588386,1759735138591,-6581.8,0.00031788,60]
[389588387,1759735138619,-8807.49600187,0.00031788,60]
[389588388,1759735138647,-6747.56960307,0.00031788,60]
[389588389,1759735138679,-1735.0224715,0.00031788,120]
[389588390,1759735138708,-1134.37535082,0.00031788,60]
[389588391,1759735138736,-500.0,0.00031788,60]
[389588392,1759735138762,-500.0,0.00031788,60]
[389588393,1759735138788,-500.0,0.00031788,60]
[389588394,1759735138815,-500.0,0.00031788,60]
[389588395,1759735138841,-500.0,0.00031788,60]
[389588396,1759735138867,-500.0,0.00031788,60]
[389588397,1759735138896,-643.85778294,0.00031788,60]
[389588398,1759735138921,-500.0,0.00031788,60]
[389588399,1759735138949,-500.0,0.00031788,60]
[389588400,1759735139186,-463.80071278,0.00031788,60]
[389588401,1759735139216,-500.0,0.00031788,60]
[389588402,1759735139245,-480.0,0.00031788,60]
[389588403,1759735139270,-481.84675038,0.00031788,60]
[389588404,1759735139296,-500.0,0.00031788,60]
[389588405,1759735139324,-483.30968884,0.00031788,60]
[389588406,1759735139350,-500.0,0.00031788,60]
[389588407,1759735139379,-482.4324279,0.00031788,60]
[389588408,1759735139408,-480.0,0.00031788,60]
[389588409,1759735139434,-500.0,0.00031788,60]
[389588410,1759735139459,-500.0,0.00031788,60]
[389588411,1759735139488,-602.09,0.00031788,60]
[389588412,1759735139515,-500.0,0.00031788,60]
[389588413,1759735139541,-500.0,0.00031788,60]
[389588414,1759735139567,-580.77,0.00031788,60]
[389588415,1759735139594,-500.0,0.00031788,60]
[389588416,1759735139619,-460.0,0.00031788,60]
[389588417,1759735139644,-500.0,0.00031788,60]
[389588418,1759735139673,-188.31665151,0.00031788,60]
[389588419,1759735139700,-500.0,0.00031788,60]
[389588420,1759735139726,-480.0,0.00031788,60]
[389588421,1759735139753,-500.0,0.00031788,60]
[389588422,1759735139782,-500.0,0.00031788,60]
[389588423,1759735139842,-500.0,0.00031788,60]
[389588424,1759735139900,-500.0,0.00031788,60]
[389588425,1759735139959,-480.0,0.00031788,60]
[389588426,1759735140019,-500.0,0.00031788,60]
[389588427,1759735140083,-500.0,0.00031788,60]
[389588428,1759735140139,-355.31,0.00031788,60]
[389588429,1759735140201,-500.0,0.00031788,60]
[389588430,1759735140263,-461.201862,0.00031788,60]
[389588431,1759735140320,-480.0,0.00031788,60]
[389588432,1759735140373,-500.0,0.00031788,60]
[389588433,1759735140428,-500.0,0.00031788,60]
[389588434,1759735140478,-545.7,0.00031788,60]
[389588435,1759735140530,-500.0,0.00031788,60]
[389588436,1759735140575,-460.0,0.00031788,60]
[389588437,1759735140624,-500.0,0.00031788,60]
[389588438,1759735140675,-500.0,0.00031788,60]
[389588439,1759735140728,-508.79100787,0.00031788,60]
[389588440,1759735140780,-500.0,0.00031788,60]
[389588441,1759735140829,-500.0,0.00031788,60]
[389588442,1759735140882,-238.09100256,0.00031788,60]
[389588443,1759735140936,-500.0,0.00031788,60]
[389588444,1759735140990,-500.0,0.00031788,60]
[389588445,1759735141045,-500.0,0.00031788,60]
[389588446,1759735141097,-500.0,0.00031788,60]
[389588447,1759735141149,-500.0,0.00031788,60]
[389588448,1759735141203,-500.0,0.00031788,60]
[389588449,1759735141253,-639.46,0.00031788,60]
[389588450,1759735141303,-500.0,0.00031788,60]
[389588451,1759735141353,-420.0,0.00031788,60]
[389588452,1759735141399,-500.0,0.00031788,60]
[389588453,1759735141449,-462.4543163,0.00031788,60]
[389588454,1759735141496,-500.0,0.00031788,60]
[389588455,1759735141544,-500.0,0.00031788,60]
[389588456,1759735141592,-237.0681321,0.00031788,60]
[389588457,1759735141640,-500.0,0.00031788,60]
[389588458,1759735141705,-500.0,0.00031788,60]
[389588459,1759735141763,-500.0,0.00031788,60]
[389588460,1759735141817,-496.63601304,0.00031788,60]
[389588461,1759735141879,-500.0,0.00031788,60]
[389588462,1759735141941,-500.0,0.00031788,60]
[389588463,1759735142023,-500.0,0.00031788,60]
[389588464,1759735142085,-500.0,0.00031788,60]
[389588465,1759735142139,-500.0,0.00031788,60]
[389588466,1759735142200,-500.0,0.00031788,60]
[389588467,1759735142255,-207.51398502,0.00031788,60]
[389588468,1759735142309,-500.0,0.00031788,60]
[389588469,1759735142364,-500.0,0.00031788,60]
[389588470,1759735142417,-460.32,0.00031788,60]
[389588471,1759735142475,-500.0,0.00031788,60]
[389588472,1759735142528,-460.0,0.00031788,60]
[389588473,1759735142581,-500.0,0.00031788,60]
[389588474,1759735142632,-500.0,0.00031788,60]
[389588475,1759735142690,-460.0,0.00031788,60]
[389588476,1759735142750,-500.0,0.00031788,60]
[389588477,1759735142806,-500.0,0.00031788,60]
[389588478,1759735142860,-461.2073126,0.00031788,60]
[389588479,1759735142916,-500.0,0.00031788,60]
[389588480,1759735142975,-462.35731114,0.00031788,60]
[389588481,1759735143036,-500.83741796,0.00031788,60]
[389588482,1759735143089,-500.0,0.00031788,60]
[389588483,1759735143143,-500.0,0.00031788,60]
[389588484,1759735143203,-500.0,0.00031788,60]
[389588485,1759735143260,-460.0,0.00031788,60]
[389588486,1759735143315,-500.0,0.00031788,60]
[389588487,1759735143376,-500.0,0.00031788,60]
[389588488,1759735143434,-500.0,0.00031788,60]
[389588489,1759735143496,-500.0,0.00031788,60]
[389588490,1759735143561,-500.0,0.00031788,60]
[389588491,1759735143617,-387.18079913,0.00031788,60]
[389588492,1759735143679,-500.0,0.00031788,60]
[389588493,1759735143758,-500.0,0.00031788,60]
[389588494,1759735143958,-540.5120521,0.00031788,60]
[389588495,1759735144023,-500.0,0.00031788,60]
[389588496,1759735144084,-460.0,0.00031788,60]
[389588497,1759735144141,-500.0,0.00031788,60]
[389588498,1759735144194,-500.0,0.00031788,60]
[389588499,1759735144246,-500.0,0.00031788,60]
[389588500,1759735144300,-461.95422598,0.00031788,60]
[389588501,1759735144353,-189.77544293,0.00031788,60]
[389588502,1759735144408,-500.0,0.00031788,60]
[389588503,1759735144463,-500.0,0.00031788,60]
[389588504,1759735144522,-462.32871712,0.00031788,60]
[389588505,1759735144575,-500.0,0.00031788,60]
[389588506,1759735144633,-462.64198109,0.00031788,60]
[389588507,1759735144693,-500.0,0.00031788,60]
[389588508,1759735144751,-500.0,0.00031788,60]
[389588509,1759735144808,-500.0,0.00031788,60]
[389588510,1759735144862,-462.85681031,0.00031788,60]
[389588511,1759735144925,-500.0,0.00031788,60]
[389588512,1759735144988,-500.0,0.00031788,60]
[389588513,1759735145055,-500.0,0.00031788,60]
[389588514,1759735145117,-590.14,0.00031788,60]
[389588515,1759735145175,-500.0,0.00031788,60]
[389588516,1759735145231,-500.0,0.00031788,60]
[389588517,1759735145289,-462.71072888,0.00031788,60]
[389588518,1759735145347,-500.0,0.00031788,60]
[389588519,1759735145409,-500.0,0.00031788,60]
[389588520,1759735145465,-460.0,0.00031788,60]
[389588521,1759735145521,-500.0,0.00031788,60]
[389588522,1759735145574,-462.20681889,0.00031788,60]
[389588523,1759735145626,-500.0,0.00031788,60]
[389588524,1759735145681,-500.0,0.00031788,60]
[389588525,1759735145740,-500.0,0.00031788,60]
[389588526,1759735145797,-500.0,0.00031788,60]
[389588527,1759735145856,-500.0,0.00031788,60]
[389588528,1759735145917,-308.78302716,0.00031788,60]
[389588529,1759735145978,-500.0,0.00031788,60]
[389588530,1759735146041,-500.0,0.00031788,60]
[389588531,1759735146096,-500.0,0.00031788,60]
[389588532,1759735146154,-461.6802043,0.00031788,60]
[389588533,1759735146211,-460.0,0.00031788,60]
[389588534,1759735146274,-500.0,0.00031788,60]
[389588535,1759735146333,-500.0,0.00031788,60]
[389588536,1759735146390,-484.45228572,0.00031788,60]
[389588537,1759735146446,-500.0,0.00031788,60]
[389588538,1759735146501,-572.2,0.00031788,60]
[389588539,1759735146562,-500.0,0.00031788,60]
[389588540,1759735146622,-502.42453481,0.00031788,60]
[389588541,1759735146696,-500.0,0.00031788,60]
[389588542,1759735146763,-500.0,0.00031788,60]
[389588543,1759735146820,-500.0,0.00031788,60]
[389588544,1759735146876,-500.0,0.00031788,60]
[389588545,1759735146938,-460.0,0.00031788,60]
[389588546,1759735147002,-500.0,0.00031788,60]
[389588547,1759735147061,-500.0,0.00031788,60]
[389588548,1759735147117,-500.0,0.00031788,60]
[389588549,1759735147174,-500.0,0.00031788,60]
[389588550,1759735147232,-500.0,0.00031788,60]
[389588551,1759735147288,-500.0,0.00031788,60]
[389588552,1759735147343,-500.0,0.00031788,60]
[389588553,1759735147404,-500.0,0.00031788,60]
[389588554,1759735147465,-500.0,0.00031788,60]
[389588555,1759735147524,-638.52,0.00031788,60]
[389588556,1759735147584,-245.51906062,0.00031788,60]
[389588557,1759735147640,-500.0,0.00031788,60]
[389588558,1759735147701,-460.0,0.00031788,60]
[389588559,1759735147760,-500.0,0.00031788,60]
[389588560,1759735147817,-500.0,0.00031788,60]
[389588561,1759735147873,-500.0,0.00031788,60]
[389588562,1759735147928,-500.0,0.00031788,60]
[389588563,1759735148003,-500.0,0.00031788,60]
[389588564,1759735148062,-460.0,0.00031788,60]
[389588565,1759735148117,-500.0,0.00031788,60]
[389588566,1759735148174,-500.0,0.00031788,60]
[389588567,1759735148228,-500.0,0.00031788,60]
[389588568,1759735148285,-463.74095184,0.00031788,60]
[389588569,1759735148342,-500.0,0.00031788,60]
[389588570,1759735148400,-500.0,0.00031788,60]
[389588571,1759735148457,-500.0,0.00031788,60]
[389588572,1759735148514,-500.0,0.00031788,60]
[389588573,1759735148573,-500.0,0.00031788,60]
[389588574,1759735148626,-632.96797396,0.00031788,60]
[389588575,1759735148680,-481.17965769,0.00031788,60]
[389588576,1759735148740,-500.0,0.00031788,60]
[389588577,1759735148799,-500.0,0.00031788,60]
[389588578,1759735148854,-500.0,0.00031788,60]
[389588579,1759735148909,-457.59245999,0.00031788,60]
[389588580,1759735148966,-500.0,0.00031788,60]
[389588581,1759735149031,-500.0,0.00031788,60]
[389588582,1759735149086,-500.0,0.00031788,60]
[389588583,1759735149141,-500.0,0.00031788,60]
[389588584,1759735149196,-500.0,0.00031788,60]
[389588585,1759735149252,-500.0,0.00031788,60]
[389588586,1759735149305,-500.0,0.00031788,60]
[389588587,1759735149357,-500.0,0.00031788,60]
[389588588,1759735149409,-500.0,0.00031788,60]
[389588589,1759735149614,-500.0,0.00031788,60]
[389588590,1759735149676,-500.0,0.00031788,60]
[389588591,1759735149739,-500.0,0.00031788,60]
[389588592,1759735149801,-500.0,0.00031788,60]
[389588593,1759735149857,-500.0,0.00031788,60]
[389588594,1759735149911,-500.0,0.00031788,60]
[389588595,1759735149968,-500.0,0.00031788,60]
[389588596,1759735150024,-460.0,0.00031788,60]
[389588597,1759735150074,-500.0,0.00031788,60]
[389588598,1759735150126,-500.0,0.00031788,60]
[389588599,1759735150183,-500.0,0.00031788,60]
[389588600,1759735150235,-500.0,0.00031788,60]
[389588601,1759735150286,-439.6237905,0.00031788,60]
[389588602,1759735150336,-500.0,0.00031788,60]
[389588603,1759735150386,-500.0,0.00031788,60]
[389588604,1759735150437,-500.0,0.00031788,60]
[389588605,1759735150488,-400.0,0.00031788,60]
[389588606,1759735150536,-500.0,0.00031788,60]
[389588607,1759735150585,-500.0,0.00031788,60]
[389588608,1759735150635,-500.0,0.00031788,60]
[389588609,1759735150684,-500.0,0.00031788,60]
[389588610,1759735150737,-500.0,0.00031788,60]
[389588611,1759735150792,-500.0,0.00031788,60]
[389588612,1759735150846,-500.0,0.00031788,60]
[389588613,1759735150900,-500.0,0.00031788,60]
[389588614,1759735150956,-500.0,0.00031788,60]
[389588615,1759735151010,-500.0,0.00031788,60]
[389588616,1759735151065,-500.0,0.00031788,60]
[389588617,1759735151123,-500.0,0.00031788,60]
[389588618,1759735151184,-500.0,0.00031788,60]
[389588619,1759735151241,-500.0,0.00031788,60]
[389588620,1759735151302,-500.0,0.00031788,60]
[389588621,1759735151349,-614.1,0.00031788,60]
[389588622,1759735151402,-617.3395988,0.00031788,60]
[389588623,1759735151449,-152.31448155,0.00031788,60]
[389588624,1759735151497,-500.0,0.00031788,60]
[389588625,1759735151545,-500.0,0.00031788,60]
[389588626,1759735151592,-500.0,0.00031788,60]